Cogmind - Beta 13 @@@ ROGUE MODE // 2024.04.01 @ 17:18:36 Player: Phosphophyllite Result: Self-destructed Performance ------------- Evolutions (2) 1000 Regions Visited (4) 800 Robots Destroyed (19) 95 Value Destroyed (484) 484 Prototype IDs (0) 0 Alien Tech Used (0) 0 Bonus (0) 0 TOTAL SCORE: 2379 Bonus ------- None Cogmind --------- Core Integrity 402/550 Matter 300/300 Energy 2/100 System Corruption 0% Temperature Cool (0) Movement Treading (160) Location -8/Materials Parts ------- > --- POWER (1) -------- (None) > --- PROPULSION (3) --- Light Treads Light Treads > --- UTILITY (5) ------ Small Storage Unit Signal Interpreter ECM Suite > --- WEAPON (2) ------- EM Pulse Gun Medium Laser > --- INVENTORY (8) ---- Light Ion Engine Wheel Medium Storage Unit Peak State ------------ > --- POWER ------------ Improved Ion Engine > --- PROPULSION ------- Aluminum Leg Aluminum Leg > --- UTILITY ---------- Small Storage Unit Sensor Array Signal Interpreter ECM Suite Light Armor Plating > --- WEAPON ----------- Beam Rifle Assault Rifle > --- INVENTORY -------- Light Ion Engine Light Treads Light Treads Medium Storage Unit EM Pulse Gun Medium Laser [Rating: 12] Favorites ----------- Power Ion Engine Engine Ion Engine Propulsion Aluminum Leg Treads Light Treads Leg Aluminum Leg Utility Small Storage Unit Device Sensor Array Storage Small Storage Unit Processor Signal Interpreter Protection Light Armor Plating Weapon Assault Rifle Energy Gun Beam Rifle Ballistic Gun Assault Rifle Ballistic Cannon Light Cannon Build | -11 -10 -10 -9 -8 ------- Run | Yrd Mat Min Mat Mat Slots Evolved 4 | . . . 2 2 Power . | . . . . . Propulsion 1 | . . . . 1 Utility 3 | . . . 2 1 Weapon . | . . . . . Parts Attached 23 | 6 5 . 7 5 Power 2 | 1 . . 1 . Engine 2 | 1 . . 1 . Core . | . . . . . Reactor . | . . . . . Propulsion 5 | 2 . . 1 2 Treads 2 | . . . . 2 Leg 3 | 2 . . 1 . Wheel . | . . . . . Hover . | . . . . . Flight . | . . . . . Utility 7 | 1 2 . 3 1 Device 3 | . 2 . . 1 Storage 1 | 1 . . . . Processor 2 | . . . 2 . Hackware . | . . . . . Protection 1 | . . . 1 . Artifact . | . . . . . Weapon 9 | 2 3 . 2 2 Energy Gun 5 | 1 1 . 1 2 Energy Cannon . | . . . . . Ballistic Gun 2 | 1 . . 1 . Ballistic Cannon 2 | . 2 . . . Launcher . | . . . . . Special Weapon . | . . . . . Impact Weapon . | . . . . . Slashing Weapon . | . . . . . Piercing Weapon . | . . . . . Special Melee Weapon . | . . . . . Unidentified Prototypes . | . . . . . Parts Lost 8 | . . . 1 7 Power 1 | . . . . 1 Propulsion 3 | . . . 1 2 Utility 2 | . . . . 2 Weapon 2 | . . . . 2 Highest Loss Streak 5 | . . . 1 5 To Critical Strikes . | . . . . . Average Slot Usage (%) 92 | . 96 100 96 78 Engine 11 | . 14 14 11 7 Leg 21 | . 28 28 20 14 Device 11 | . 11 14 11 11 Storage 11 | . 14 14 11 9 Processor 7 | . . . 12 9 Protection 4 | . . . 8 6 Energy Gun 10 | . 11 14 7 12 Ballistic Gun 7 | . 5 . 10 4 Ballistic Cannon 5 | . 10 14 3 . Naked Turns . | . . . . . Heaviest Build 23 | 13 16 16 21 23 Greatest Support 40 | 20 20 20 20 40 Greatest Overweight (x) 1 | . . . 1 1 Average Overweight (x) . | . . . . . Largest Inventory Capacity 8 | 8 8 8 8 8 Average Capacity 7 | 7 8 8 8 8 Most Carried 8 | 6 8 7 7 7 Average Carried 6 | 4 7 7 5 5 Final Capacity 8 | 8 8 8 8 8 Final Carried 7 | 6 7 7 7 3 Class Distribution -------------------- 58% | Mutant 41% | Scavenger-Mutant Dominant Class ---------------- Mutant | -10/Materials Mutant | -10/Mines Scavenger-Mutant | -9/Materials Scavenger-Mutant | -8/Materials Resources | -11 -10 -10 -9 -8 ----------- Run | Yrd Mat Min Mat Mat Matter Collected 628 | 222 197 . 163 46 Remotely . | . . . . . Salvage Created 600 | . 234 . 186 180 Parts 39 | . 20 . 6 13 Haulers Intercepted . | . . . . . Recyclers Shooed 1 | . . . . 1 Parts Field Recycled . | . . . . . Retrieved Matter . | . . . . . Parts Self-Destructed . | . . . . . Prevented . | . . . . . Kills | -11 -10 -10 -9 -8 ------- Run | Yrd Mat Min Mat Mat Combat Hostiles Destroyed 13 | . 8 . 2 3 Guns 6 | . 2 . 1 3 Cannons 7 | . 6 . 1 . Classes Destroyed 8 | . 5 . 2 1 Worker 1 | . 1 . . . Builder 2 | . 1 . . 1 Recycler 1 | . . . 1 . Watcher 2 | . 2 . . . Swarmer 3 | . 3 . . . Grunt 5 | . 5 . . . Sentry 4 | . . . 2 2 Hunter 1 | . . . . 1 Best Kill Streak 3 | . 3 . 2 2 Combat Bots Only 3 | . 3 . 1 2 Max Kills in Single Turn 1 | . 1 . 1 1 Gunslinging . | . . . . . Exploded . | . . . . . Melee . | . . . . . Uniques/NPCs Destroyed . | . . . . . Combat | -11 -10 -10 -9 -8 -------- Run | Yrd Mat Min Mat Mat Hostile Shots Fired 127 | . 44 . 16 67 Missed 26 | . 9 . 3 14 Damage Taken 1259 | . 348 . 195 716 Core 238 | . 50 . 40 148 Absorbed by Shields . | . . . . . Core Remaining (%) 90 | 100 . 80 90 . Volleys Fired 64 | . 34 . 8 22 Largest 2 | . 2 . 2 2 Hottest 96 | . 85 . 76 96 Shots Fired 123 | . 68 . 16 39 Gun 87 | . 39 . 9 39 Cannon 36 | . 29 . 7 . Launcher . | . . . . . Special . | . . . . . Kinetic 60 | . 43 . 15 2 Thermal 43 | . 25 . 1 17 Explosive . | . . . . . Electromagnetic 20 | . . . . 20 Robot Hit Streak 12 | . 9 . 3 12 Robot Miss Streak 4 | . 4 . 2 3 Penetration Max . | . . . . . Secondary Targets . | . . . . . Shots Hit Robots 72 | . 38 . 8 26 Core Hits 28 | . 15 . 5 8 Critical Kills . | . . . . . Critical Parts Destroyed . | . . . . . Critical Strikes 6 | . 2 . 2 2 Burn 3 | . 2 . . 1 Blast 2 | . . . 2 . Corrupt 1 | . . . . 1 Melee Attacks . | . . . . . Impact . | . . . . . Slashing . | . . . . . Piercing . | . . . . . Sneak Attacks . | . . . . . Combat Hostiles . | . . . . . Follow-up Attacks . | . . . . . Damage Inflicted 1086 | . 607 . 134 345 Guns 638 | . 253 . 40 345 Cannons 448 | . 354 . 94 . Explosions . | . . . . . Melee . | . . . . . Ramming . | . . . . . Kinetic 599 | . 458 . 134 7 Thermal 348 | . 149 . . 199 Explosive . | . . . . . Electromagnetic 139 | . . . . 139 Impact . | . . . . . Slashing . | . . . . . Piercing . | . . . . . Highest Corruption 1 | . . . 1 . Average Corruption 1 | . . . 1 . Corruption Purged . | . . . . . Corruption Blocked . | . . . . . Effects 1 | . . . 1 . Data Loss (minor) 1 | . . . 1 . Overload Shots . | . . . . . Overflow Damage . | . . . . . Projectiles . | . . . . . Explosions . | . . . . . Melee . | . . . . . Knockbacks 8 | . 8 . . . Impact . | . . . . . Kinetic 8 | . 8 . . . Secondary . | . . . . . Self-Inflicted Damage . | . . . . . Shots . | . . . . . Rammed . | . . . . . Targets Rammed . | . . . . . Kicked . | . . . . . Crushed . | . . . . . Highest Temperature 375 | . 264 . 18 375 Average Temperature 96 | . 68 . 6 147 Received Heat Transfer 489 | . 138 . 72 279 Effects 2 | . . . . 2 Short Circuit 1 | . . . . 1 Damage (minor) 1 | . . . . 1 Siege Activations . | . . . . . Robots Corrupted . | . . . . . Combat Hostiles . | . . . . . Parts Fried 1 | . . . . 1 Impact Corruptions . | . . . . . Robots Melted . | . . . . . Combat Hostiles . | . . . . . Parts Melted 2 | . 2 . . . Heat Transferred 1172 | . 580 . . 592 Parts Sabotaged . | . . . . . Parts Stolen . | . . . . . Parts Stripped . | . . . . . Power Chain Reactions . | . . . . . Alert | -11 -10 -10 -9 -8 ------- Run | Yrd Mat Min Mat Mat Peak Influence 246 | . 246 95 155 135 Initial 95 | . . 95 37 65 Average 91 | . 103 95 111 78 Maximum Alert Level 1 | . 1 . . . Low Security (%) 94 | 100 81 100 100 100 Level 1 5 | . 18 . . . Level 2 . | . . . . . Level 3 . | . . . . . Level 4 . | . . . . . Level 5 . | . . . . . High Security . | . . . . . Max Security . | . . . . . Squads Dispatched 3 | . 2 . . 1 Investigation 1 | . . . . 1 Extermination . | . . . . . Reinforcement 2 | . 2 . . . Assault . | . . . . . Garrison . | . . . . . Intercept . | . . . . . Searches Triggered . | . . . . . Construction Impeded . | . . . . . Haulers Reinforced . | . . . . . Active Scanning Responses . | . . . . . Cargo Convoy Interrupts . | . . . . . Stealth | -11 -10 -10 -9 -8 --------- Run | Yrd Mat Min Mat Mat Distress Signals 5 | . 2 . 2 1 Communications Jammed . | . . . . . Distress Signals . | . . . . . Times Spotted 32 | . 14 . 5 13 Peak Tracking Total 7 | . 4 . 5 7 Tactical Retreats 6 | . 1 . 2 3 Traps | -11 -10 -10 -9 -8 ------- Run | Yrd Mat Min Mat Mat Traps Triggered 2 | . . . 1 1 Indirectly . | . . . . . Trap Hack Attempts . | . . . . . Triggered . | . . . . . Disarmed . | . . . . . Reprogrammed . | . . . . . Reused . | . . . . . Traps Extracted . | . . . . . Installed . | . . . . . Triggered . | . . . . . Machines | -11 -10 -10 -9 -8 ---------- Run | Yrd Mat Min Mat Mat Machines Disabled . | . . . . . Max in Single Turn . | . . . . . Machines Repaired . | . . . . . Machines Dismantled . | . . . . . Machines Sabotaged . | . . . . . Overloaded Fab Kills . | . . . . . Hacking | -11 -10 -10 -9 -8 --------- Run | Yrd Mat Min Mat Mat Machines Accessed 2 | . . . 1 1 Terminals 2 | . . . 1 1 Fabricators . | . . . . . Repair Stations . | . . . . . Recycling Units . | . . . . . Scanalyzers . | . . . . . Garrison Access . | . . . . . Total Hacks 5 | . . . 2 3 Successful 4 | . . . 2 2 Failed 1 | . . . . 1 Catastrophic . | . . . . . Database Lockouts . | . . . . . Manual . | . . . . . Terminals 5 | . . . 2 3 Fabricators . | . . . . . Repair Stations . | . . . . . Recycling Units . | . . . . . Scanalyzers . | . . . . . Garrison Access . | . . . . . Terminal Hacks 4 | . . . 2 2 Record 3 | . . . 2 1 Alert Level 1 | . . . . 1 Fabricator Hacks . | . . . . . Repair Station Hacks . | . . . . . Recycling Unit Hacks . | . . . . . Scanalyzer . | . . . . . Garrison Access Hacks . | . . . . . Unauthorized Hacks . | . . . . . Terminals . | . . . . . Fabricators . | . . . . . Repair Stations . | . . . . . Recycling Units . | . . . . . Scanalyzers . | . . . . . Garrison Access . | . . . . . Data Cores Recovered . | . . . . . Used . | . . . . . Hacking Detections . | . . . . . Full Trace Events . | . . . . . Feedback Events . | . . . . . Feedback Blocked . | . . . . . Robot Schematics Acquired . | . . . . . Robots Built . | . . . . . Authchips . | . . . . . Time . | . . . . . Total Robot Build Rating . | . . . . . Part Schematics Acquired . | . . . . . Parts Built . | . . . . . Authchips . | . . . . . Time . | . . . . . Total Part Build Rating . | . . . . . Parts Repaired . | . . . . . Time . | . . . . . Parts Recycled . | . . . . . Recycled Matter . | . . . . . Retrieved Matter . | . . . . . Retrieved Components . | . . . . . Parts Scanalyzed . | . . . . . Part Schematics Acquired . | . . . . . Parts Damaged . | . . . . . Bothacking | -11 -10 -10 -9 -8 ------------ Run | Yrd Mat Min Mat Mat Used RIF Installer . | . . . . . Robots Hacked . | . . . . . Non-combat . | . . . . . Combat . | . . . . . Robot Hacks Applied . | . . . . . Relay Couplers Released . | . . . . . Fabnet Peak Effective % . | . . . . . Robots Rewired . | . . . . . Allies Hacked . | . . . . . Hacks Repelled . | . . . . . Allies | -11 -10 -10 -9 -8 -------- Run | Yrd Mat Min Mat Mat Total Allies . | . . . . . Largest Group . | . . . . . Highest-Rated Group . | . . . . . Highest-Rated Ally . | . . . . . Total Orders . | . . . . . Ally Attacks . | . . . . . Total Damage . | . . . . . Kills . | . . . . . Allies Corrupted . | . . . . . Allies Melted . | . . . . . Intel | -11 -10 -10 -9 -8 ------- Run | Yrd Mat Min Mat Mat Robot Analysis Total . | . . . . . Derelict Logs Recovered . | . . . . . Drone Launches . | . . . . . Drone Recoveries . | . . . . . Exploration | -11 -10 -10 -9 -8 ------------- Run | Yrd Mat Min Mat Mat Turns Passed 990 | 79 295 48 340 228 Spaces Moved 498 | 60 143 41 178 76 Core 14 | 14 . . . . Treads 3 | . . . . 3 Legs 481 | 46 143 41 178 73 Wheels . | . . . . . Hover . | . . . . . Flight . | . . . . . Fastest Speed 50 | 50 120 120 120 120 Average Speed 146 | 103 120 120 169 187 Slowest Speed 190 | 120 120 120 190 190 Overloaded Moves . | . . . . . Propulsion Burnouts . | . . . . . Robots Hopped . | . . . . . Cave-ins Triggered . | . . . . . Exploration Rate (%) 16 | 4 30 16 20 10 Regions Visited 4 Branch Regions 1 Pre-discovered Areas . | . . . . . Known Exits Taken 1 | . . . 1 . Unknown Exits Taken 3 | 1 1 1 . . Scrap Searched . | . . . . . Spaces Dug . | . . . . . Terrain Destroyed . | . . . . . Melee . | . . . . . Projectile . | . . . . . AOE . | . . . . . Terrain Rammed . | . . . . . Walls Destroyed . | . . . . . Machines Disabled . | . . . . . Actions | -11 -10 -10 -9 -8 --------- Run | Yrd Mat Min Mat Mat Total 640 | 77 200 40 201 122 Wait 24 | . 6 . . 18 Move 494 | 59 142 40 177 76 Hop . | . . . . . Pick Up 26 | 12 7 . 6 1 Fast Attach . | . . . . . Attach 18 | 6 2 . 5 5 Detach . | . . . . . Swap 5 | . 3 . 2 . Drop 9 | . 6 . 3 . Fire 64 | . 34 . 8 22 Melee . | . . . . . Ram . | . . . . . Kick . | . . . . . Crush . | . . . . . Escape Stasis . | . . . . . Rewire . | . . . . . Trap . | . . . . . Miscellaneous . | . . . . . Route ------- -11/Scrapyard -10/Materials -10/Mines -9/Materials -8/Materials History --------- Turn | Location | Event 24 | -11/Scrapyard | Discovered new exit (range 16) 80 | -11/Scrapyard | Entered Materials 323 | -10/Materials | Build established: Mutant 337 | -10/Materials | Discovered new exit (range 12) 375 | -10/Materials | Entered Mines 407 | -10/Mines | Discovered new exit (range 11) 423 | -10/Mines | Entered Materials 423 | -9/Materials | Evolved 2 slots: Utility x2 742 | -9/Materials | Discovered new exit (range 11) 761 | -9/Materials | Identified exit to Materials 763 | -9/Materials | Entered another Materials area 763 | -8/Materials | Evolved 2 slots: Propulsion x1, Utility x1 834 | -8/Materials | Build established: Scavenger-Mutant 991 | -8/Materials | Self-destructed Last Messages --------------- H-55 Commando destroyed. Lgt. Armor Plating destroyed. Critical hit (Burn: +37). Aluminum Leg destroyed. Overheating: Sml. Storage Unit damaged (-83). Y-45 Defender heat spikes uncontrollably. Heat Sink fried. Y-45 Defender destroyed. Critical hit (Burn: +37). Aluminum Leg destroyed. Acquired 10 matter. Beam Rifle broken. Overheating: Short circuit. Acquired 10 matter. Broken Beam Rifle destroyed. Acquired Wheel. Imp. Ion Engine destroyed. Acquired 10 matter. R-06 Scavenger sends out distress signal. K-01 Serf collects debris. Map ----- +----------------------------------------------------+ | ?????????????????????????????????????????????????? | | ?????????????????????????????????????????????????? | | ?????????????????????????????????????????????????? | | ?????????????????????????????????????????????????? | | ?????????????????????????????????????????????????? | | ?????????????????????????????????????????????????? | | ?????????????????????????????????????????????????? | | ?????????????????????????????????????????????????? | | ?????????????????????????????????????????????????? | | ?????????????????????? ??????????????????????????? | | ???????????????????###/?####?????????????????????? | | ???????????????????# #?????????????????????? | | ???????????????????# """ #?????????????????????? | | ???????????????????# """"" #?????????????????????? | | ???????????????????# """"" #?????????????????????? | | ???????????????????# """"" #?????????????????????? | | ???????????????????# """ #?????????????????????? | | ???????????????????# #?? ??????????????????? | | ??????????????""???# #?? ??????????????????? | | ????????????? """ # #?? ??????????????????? | | ????????????? """ / =%!#?? ??????????????????? | | ????????????# # ! *!=#?? ??????????????????? | | ????????????# """ ######+##?? ??????????????????? | | ????????????? """ ??????#!#??? ??????????????????? | | ??????????????"""???????#=#??# #?????????????????? | | ?????????????? ????????#@#??# #?????????????????? | | ??????????????"?????????#g#??# #?????????????????? | | ????????????????????????#g#??# #?????????????????? | | ????????????????????????#g#??# #?????????????????? | | ????????????????????????#g#??# #?????????????????? | | ????????????????????????#=#??# #?????????????????? | | ????????????????????????#!#### #?????????????????? | | ????????????????????????#kg #?????????????????? | | ?????????????????######?# #?????????????????? | | ?????????????????# ?# #?????????????????? | | ?????????????????# """ # #?????????????????? | | ?????????????????# """ # #?????????????????? | | ?????????????????# """ + #?????????????????? | | ?????????????????# # ######?????????????????? | | ?????????????????# # #??????????????????????? | | ?????????????????######?# #??????????????????????? | | ????????????????????????# #??????????????????????? | | ????????????????????##### ##?????????????????????? | | ????????????????????# # #?????????????????????? | | ????????????????????# T #?????????????????????? | | ????????????????????# # #?????????????????????? | | ????????????????????##### ##?????????????????????? | | ????????????????????????# #??????????????????????? | | ????????????????????????# #??????????????????????? | | ????????????????????????# #??????????????????????? | +----------------------------------------------------+ Best States ------------- Heat Dissipation 31 Energy Generation 12 Energy Capacity 265 Matter Stores 300 Matter Capacity 300 Sight Range 16 Robot Scan Range 14 Terrain Scan Range 14 Terrain Scan Density 85 ECM Strength 1 Armor Coverage 150 Evasion (%) 55 Recoil Reduction 2 Item Schematics ----------------- None Robot Schematics ------------------ None Fabricated ------------ Nothing Alien Tech Used ----------------- None Achievements -------------- None Challenges ------------ None Game ------ Seed GuidedFissionNetwork Manual? 0 Play Time 00:16:25 Cumulative 4.3 hours Start 2024.04.01 @ 16:59:04 End 2024.04.01 @ 17:18:36 Sessions 1 Manual Loads 0 Difficulty Rogue Special Mode None Game No. 11 Rogue 11 Adventurer 0 Explorer 0 Win Type - Total 0 Types 0/0/0/0/0/0/0/0/0 Lore% 1 Gallery% 10 Achievement% 8 Wizard Run 0 Options --------- Layout 0 ASCII 0 Keyboard 0 Movement Mouse Keybinds 0 Fullscreen 1 Font 24/Smallcaps Map View 76x50 Zoom Use 0% Tactical HUD 0 Map Filters NONE Filters NONE Steam 1 RUN: 1d04baf7-3b3e-4cb6-82c3-1c1952157702